bitfinex/quotes_BTCUSD_20250205
["timestamp","ask_amount","ask_price","bid_price","bid_amount"]
[1738765137593,0.0001066,98719.0,98718.0,0.26440069]
[1738765137946,0.0001066,98719.0,98718.0,0.11245369]
[1738765138156,0.0001066,98719.0,98718.0,0.26440069]
[1738765138350,0.0001066,98719.0,98718.0,0.11245369]
[1738765138953,0.0001066,98719.0,98718.0,0.10250365]
[1738765139161,0.0001066,98719.0,98718.0,0.11245369]
[1738765139565,0.0001066,98719.0,98718.0,0.10250365]
[1738765139778,0.1520526,98719.0,98718.0,0.11245369]
[1738765141036,0.0001066,98719.0,98718.0,0.11245369]
[1738765141647,0.0001066,98719.0,98718.0,0.26440069]
[1738765141839,0.0001066,98719.0,98718.0,0.11245369]
[1738765141997,0.0001066,98719.0,98718.0,0.26440069]
[1738765142199,0.0001066,98719.0,98718.0,0.11245369]
[1738765143953,0.1520526,98719.0,98718.0,0.11245369]
[1738765146329,0.1520526,98719.0,98715.0,0.00022386]
[1738765146330,0.151951,98716.0,98715.0,0.00022386]
[1738765146553,0.15296851,98716.0,98715.0,0.00022386]
[1738765149261,0.30296851,98716.0,98715.0,0.00022386]
[1738765149478,0.301951,98716.0,98715.0,0.00022386]
[1738765150589,0.808461,98716.0,98715.0,0.00022386]
[1738765150941,0.818324,98716.0,98715.0,0.00022386]
[1738765166080,0.900724,98716.0,98715.0,0.00022386]
[1738765166678,0.91965545,98716.0,98715.0,0.00022386]
[1738765173128,0.52544145,98716.0,98715.0,0.00022386]
[1738765174183,0.52544145,98716.0,98715.0,0.26462955]
[1738765174967,0.50651,98716.0,98715.0,0.26462955]
[1738765175413,0.50596782,98716.0,98715.0,0.26462955]
[1738765182435,0.50596782,98716.0,98715.0,0.11267755]
[1738765183005,0.50596782,98716.0,98715.0,0.26462955]
[1738765184175,0.50596782,98716.0,98715.0,0.11267755]
[1738765184788,0.50596782,98716.0,98715.0,0.26462955]
[1738765184986,0.50596782,98716.0,98715.0,0.11267755]
[1738765185700,0.65791882,98716.0,98715.0,0.00022386]
[1738765193735,0.65802562,98716.0,98715.0,0.00022386]
[1738765197080,0.65302562,98716.0,98715.0,0.00022386]
[1738765200313,0.50107462,98716.0,98715.0,0.00022386]
[1738765200446,0.50107462,98716.0,98715.0,0.26462955]
[1738765201464,0.50107462,98716.0,98715.0,0.00022386]
[1738765202550,0.50107462,98716.0,98715.0,0.26462955]
[1738765208933,0.50107462,98716.0,98715.0,0.27466292]
[1738765215121,0.50107462,98716.0,98715.0,0.37276292]
[1738765215337,0.50107462,98716.0,98715.0,0.55412982]
[1738765217948,0.48207462,98716.0,98715.0,0.55412982]
[1738765218556,0.48207462,98716.0,98715.0,0.52276292]
[1738765221266,0.48207462,98716.0,98715.0,0.42466292]
[1738765221487,0.48207462,98716.0,98715.0,0.41462955]
[1738765222317,0.48207462,98716.0,98715.0,0.43762955]
[1738765223235,0.48207462,98716.0,98715.0,0.42767951]
[1738765223434,0.48207462,98716.0,98715.0,0.41462955]
[1738765226865,0.48207462,98716.0,98715.0,0.10272751]
[1738765227046,0.63402562,98716.0,98715.0,0.10272751]
[1738765227246,0.71172562,98716.0,98715.0,0.00022386]
[1738765227456,0.90842562,98716.0,98715.0,0.00022386]
[1738765227657,0.91858033,98716.0,98715.0,0.00022386]
[1738765227857,0.93750883,98716.0,98715.0,0.00022386]
[1738765228814,0.96778317,98716.0,98715.0,0.00022386]
[1738765232330,0.93750883,98716.0,98715.0,0.00022386]
[1738765235450,0.96773309,98716.0,98715.0,0.00022386]
[1738765235653,0.81773309,98716.0,98715.0,0.00022386]
[1738765236443,0.78750883,98716.0,98715.0,0.00022386]
[1738765237265,0.77735412,98716.0,98715.0,0.10272751]
[1738765238521,0.77735412,98716.0,98715.0,0.00022386]
[1738765240262,0.80756119,98716.0,98715.0,0.00022386]
[1738765244103,0.77735412,98716.0,98715.0,0.00022386]
[1738765246047,0.80755455,98716.0,98715.0,0.00022386]
[1738765248245,0.86843455,98716.0,98715.0,0.00022386]
[1738765248681,1.01843455,98716.0,98715.0,0.00022386]
[1738765249141,1.22140535,98716.0,98715.0,8.6e-07]
[1738765249356,1.22140535,98716.0,98711.0,0.00022386]
[1738765249357,0.302023,98669.0,98668.0,0.00995004]
[1738765249559,0.152034,98662.0,98661.0,0.00022407]
[1738765249768,0.15305151,98662.0,98661.0,0.00022407]
[1738765249969,0.63501933,98662.0,98661.0,0.00022407]
[1738765250181,0.63400182,98662.0,98661.0,0.00022407]
[1738765250588,0.68313075,98662.0,98661.0,0.00022407]
[1738765250789,0.68313075,98662.0,98661.0,0.00069049]
[1738765251831,0.65293032,98662.0,98661.0,0.00069049]
[1738765252773,0.50089632,98662.0,98661.0,0.00069049]
[1738765252906,0.48196782,98662.0,98661.0,0.00069049]
[1738765253124,0.63400182,98662.0,98661.0,0.00069049]
[1738765254366,0.48196782,98662.0,98661.0,0.00069049]
[1738765254775,0.63400182,98662.0,98661.0,0.00069049]
[1738765256763,0.71140182,98662.0,98661.0,0.00069049]
[1738765257004,0.73027256,98662.0,98661.0,0.00069049]
[1738765257213,0.87877621,98662.0,98661.0,0.00069049]
[1738765257782,1.13127986,98662.0,98661.0,0.00069049]
[1738765257981,1.19215986,98662.0,98661.0,4.9e-07]
[1738765258227,1.24534678,98662.0,98661.0,4.9e-07]
[1738765259147,1.22234678,98662.0,98661.0,4.9e-07]
[1738765259382,1.11984313,98662.0,98661.0,4.9e-07]
[1738765259517,1.15284313,98662.0,98661.0,4.9e-07]
[1738765260343,2.66551044,98662.0,98661.0,4.9e-07]
[1738765260520,1.16551044,98662.0,98661.0,4.9e-07]
[1738765260722,1.26801409,98662.0,98661.0,4.9e-07]
[1738765262974,1.20713409,98662.0,98661.0,4.9e-07]
[1738765263770,1.53113409,98662.0,98661.0,4.9e-07]
[1738765265003,1.50813409,98662.0,98661.0,4.9e-07]
[1738765265217,1.51729409,98662.0,98661.0,4.9e-07]
[1738765265680,1.54029409,98662.0,98661.0,4.9e-07]
[1738765268312,1.54029409,98662.0,98661.0,9.8e-07]
[1738765268749,0.430389,98626.0,98616.0,0.00022407]
[1738765268928,0.91235682,98626.0,98625.0,0.00036405]
[1738765269324,1.01486047,98626.0,98625.0,0.00036405]
[1738765269892,1.08656948,98626.0,98625.0,0.00036405]
[1738765270316,0.98406583,98626.0,98625.0,0.00036405]
[1738765271876,0.85576583,98626.0,98625.0,0.00036405]
[1738765272429,0.84309852,98626.0,98625.0,0.00036405]
[1738765276003,0.68311448,98626.0,98625.0,0.00036405]
[1738765276364,0.65292756,98626.0,98625.0,0.00036405]
[1738765276574,0.50083856,98626.0,98625.0,0.00036405]
[1738765276955,0.65292756,98626.0,98625.0,0.00036405]
[1738765277715,0.63405682,98626.0,98625.0,0.00036405]
[1738765278766,0.66425991,98626.0,98625.0,0.00036405]
[1738765280346,0.68315458,98626.0,98625.0,0.00036405]
[1738765282595,0.65295149,98626.0,98625.0,0.00036405]
[1738765289798,0.63405682,98626.0,98625.0,0.00036405]
[1738765290210,0.67925682,98626.0,98625.0,0.00036405]
[1738765295291,0.63405682,98626.0,98625.0,0.00036405]
[1738765297138,0.69493682,98626.0,98625.0,0.00036405]
[1738765297358,0.84493682,98626.0,98625.0,0.00036405]
[1738765299031,0.92783682,98626.0,98625.0,0.00036405]
[1738765299170,1.40254047,98626.0,98625.0,0.00036405]
[1738765299755,1.42151012,98626.0,98625.0,0.00036405]
[1738765300581,1.40254047,98626.0,98625.0,0.00036405]
[1738765300782,1.42554047,98626.0,98625.0,0.00036405]
[1738765300980,1.52804412,98626.0,98625.0,0.00036405]
[1738765301626,1.53804412,98626.0,98625.0,5e-08]
[1738765302003,1.46691242,98626.0,98625.0,5e-08]
[1738765302209,1.43554047,98626.0,98625.0,5e-08]
[1738765302423,0.385978,98620.0,98619.0,0.00018412]
[1738765302619,1.09924947,98620.0,98619.0,0.00018412]
[1738765303079,1.09924947,98620.0,98619.0,1.2e-07]
[1738765303290,0.302109,98613.0,98612.0,0.00022407]
[1738765303509,1.36238047,98613.0,98612.0,0.00013982]
[1738765303646,1.38134455,98613.0,98612.0,0.00013982]
[1738765304653,1.41165586,98613.0,98612.0,0.00013982]
[1738765305284,1.41165586,98613.0,98570.0,0.00995004]
[1738765305285,0.152151,98586.0,98570.0,0.00995004]
[1738765305491,0.63513633,98586.0,98570.0,0.00995004]
[1738765305698,0.63513633,98586.0,98562.0,0.00022428]
[1738765305699,0.63411882,98586.0,98565.0,0.00995004]
[1738765305869,0.63411882,98586.0,98569.0,0.00995004]
[1738765305870,0.68339421,98586.0,98569.0,0.00995004]
[1738765306115,0.68339421,98586.0,98567.0,0.00995004]
[1738765306279,0.68339421,98586.0,98565.0,0.00995004]
[1738765306679,0.68339421,98586.0,98562.0,0.00022428]
[1738765306880,0.83339421,98586.0,98562.0,0.00022428]
[1738765309211,0.93589786,98586.0,98562.0,0.00022428]
[1738765309415,1.25989786,98586.0,98562.0,0.00022428]
[1738765310034,1.31207339,98586.0,98562.0,0.00022428]
[1738765310244,1.26986153,98586.0,98562.0,0.00022428]
[1738765313579,1.26986153,98586.0,98562.0,0.01017432]
[1738765313580,1.16735788,98586.0,98562.0,0.01017432]
[1738765314732,1.26986153,98586.0,98562.0,0.00022428]
[1738765316650,1.37576153,98586.0,98562.0,0.00022428]
[1738765317071,1.38576153,98586.0,98585.0,2.8e-07]
[1738765317284,3.03466518,98586.0,98585.0,2.8e-07]
[1738765317685,3.04358518,98586.0,98585.0,2.8e-07]
[1738765318015,3.10443518,98586.0,98585.0,2.8e-07]
[1738765321331,1.46001153,98586.0,98585.0,2.8e-07]
[1738765321540,1.46889153,98586.0,98585.0,2.8e-07]
[1738765322302,1.38599153,98586.0,98585.0,2.8e-07]
[1738765323161,1.01735788,98586.0,98585.0,2.8e-07]
[1738765323548,1.16735788,98586.0,98585.0,2.8e-07]
[1738765324105,0.98704657,98586.0,98585.0,2.8e-07]
[1738765324331,1.13704657,98586.0,98585.0,2.8e-07]
[1738765324515,0.98704657,98586.0,98585.0,2.8e-07]
[1738765327579,0.5009319,98586.0,98585.0,0.00995032]
[1738765328189,0.6530829,98586.0,98585.0,0.00995032]
[1738765328603,0.63411882,98586.0,98585.0,0.00995032]
[1738765329232,0.48196782,98586.0,98585.0,0.00995032]
[1738765330323,0.48207482,98586.0,98585.0,0.00995032]
[1738765330528,0.48207482,98586.0,98585.0,0.16210232]
[1738765330711,0.48207482,98586.0,98585.0,0.26460597]
[1738765331468,0.48207482,98586.0,98585.0,0.38800597]
[1738765332379,0.48207482,98586.0,98585.0,0.39788676]
[1738765334947,0.46307482,98586.0,98585.0,0.39788676]
[1738765335322,0.46307482,98586.0,98585.0,0.42088676]
[1738765335520,0.46307482,98586.0,98585.0,0.39788676]
[1738765336929,0.46307482,98586.0,98585.0,0.23585397]
[1738765337083,0.61522582,98586.0,98585.0,0.00995032]
[1738765337293,0.61522582,98586.0,98585.0,2.8e-07]
[1738765338496,0.62549768,98586.0,98585.0,2.8e-07]
[1738765338669,0.67089768,98586.0,98585.0,2.8e-07]
[1738765339524,0.68978811,98586.0,98585.0,2.8e-07]
[1738765339726,0.91988811,98586.0,98585.0,2.8e-07]
[1738765340549,0.95011384,98586.0,98585.0,2.8e-07]
[1738765340957,0.87001384,98586.0,98585.0,2.8e-07]
[1738765342820,0.82461384,98586.0,98585.0,2.8e-07]
[1738765343564,0.66434198,98586.0,98585.0,2.8e-07]
[1738765343952,0.63411625,98586.0,98585.0,2.8e-07]
[1738765348120,0.82216625,98586.0,98585.0,2.8e-07]
[1738765348959,0.85242903,98586.0,98585.0,2.8e-07]
[1738765349908,1.17642903,98586.0,98585.0,2.8e-07]
[1738765353082,1.17642903,98586.0,98569.0,0.00995004]
[1738765353083,0.152175,98571.0,98569.0,0.00966213]
[1738765353610,0.202896,98573.0,98569.0,0.00966213]
[1738765353815,0.46296782,98573.0,98572.0,0.00966213]
[1738765354348,0.46296782,98573.0,98568.0,0.00966213]
[1738765354597,0.152174,98571.0,98570.0,0.00966213]
[1738765354776,0.355073,98571.0,98570.0,0.00966213]
[1738765354990,0.81804082,98571.0,98570.0,0.00966213]
[1738765355216,0.15218,98567.0,98566.0,0.00966213]
[1738765355416,0.15319451,98569.0,98568.0,0.00966213]
[1738765355618,0.152182,98566.0,98565.0,0.00966213]
[1738765355744,0.61514482,98569.0,98568.0,0.00966213]
[1738765356360,0.46296782,98569.0,98568.0,0.00966213]
[1738765361945,0.61514482,98569.0,98568.0,0.00966213]
[1738765362270,0.46296782,98569.0,98568.0,0.00966213]
[1738765362939,0.46296782,98569.0,98568.0,0.26434478]
[1738765366497,0.48191595,98569.0,98568.0,0.34344478]
[1738765367078,0.48191595,98569.0,98568.0,0.34366906]
[1738765369096,0.46296782,98569.0,98568.0,0.11239006]
[1738765369509,0.46296782,98569.0,98568.0,0.26456906]
[1738765372335,0.46296782,98569.0,98568.0,0.11239006]
[1738765372697,0.61514482,98569.0,98568.0,0.00988641]
[1738765374862,0.46296782,98569.0,98568.0,0.11239006]
[1738765375266,0.46296782,98569.0,98568.0,0.26456906]
[1738765376154,0.46296782,98569.0,98568.0,0.11239006]
[1738765377394,0.46296782,98569.0,98568.0,0.00988641]
[1738765378247,0.61514482,98569.0,98568.0,0.00988641]
[1738765378672,0.46296782,98569.0,98568.0,0.00988641]
[1738765380263,0.46307462,98569.0,98568.0,0.00988641]
[1738765380622,0.46307462,98569.0,98568.0,0.26456906]
[1738765381258,0.46307462,98569.0,98568.0,0.42100737]
[1738765381457,0.46307462,98569.0,98568.0,0.45402073]
[1738765382913,0.44407462,98569.0,98568.0,0.60402073]
[1738765383114,0.42507462,98569.0,98568.0,0.60402073]
[1738765386643,0.42507462,98569.0,98568.0,0.62450127]
[1738765388028,0.40607462,98569.0,98568.0,0.62450127]
[1738765388435,0.40607462,98569.0,98568.0,0.95480127]
[1738765388632,0.38707462,98569.0,98568.0,0.95480127]
[1738765388900,0.0001068,98569.0,98568.0,0.95480127]
[1738765389896,0.0001068,98569.0,98568.0,0.96480127]
[1738765390101,8e-07,98569.0,98568.0,0.96480127]
[1738765393003,0.04679514,98607.0,98606.0,0.16178213]
[1738765393249,0.04679514,98607.0,98606.0,0.26428578]
[1738765393429,0.0001069,98612.0,98610.0,0.152113]
[1738765393622,0.0001069,98612.0,98611.0,0.10250365]
[1738765394307,0.00018719,98612.0,98611.0,0.11216578]
[1738765394476,0.00018719,98612.0,98611.0,0.26427778]
[1738765404055,0.15229819,98612.0,98611.0,0.10250365]
[1738765404374,0.15229819,98612.0,98611.0,0.11216578]
[1738765404779,0.00018719,98612.0,98611.0,0.11216578]
[1738765405222,0.00018719,98612.0,98611.0,0.26427778]
[1738765405427,0.00018719,98612.0,98611.0,0.11216578]
[1738765405618,0.00018719,98612.0,98611.0,0.26427778]
[1738765405795,0.00018719,98612.0,98611.0,0.11216578]
[1738765406161,0.15229819,98612.0,98611.0,0.11216578]
[1738765406367,0.00018719,98612.0,98611.0,0.11216578]
[1738765406975,0.00018719,98612.0,98611.0,0.26427778]
[1738765408202,0.00018719,98612.0,98611.0,0.11216578]
[1738765412261,0.27699819,98612.0,98602.0,0.00966213]
[1738765412598,0.152132,98598.0,98597.0,0.00966213]
[1738765412811,0.228942,98592.0,98591.0,0.00966213]
[1738765413392,0.24790922,98592.0,98591.0,0.00966213]
[1738765414062,0.09576722,98592.0,98591.0,0.00966213]
[1738765414241,0.01896722,98592.0,98591.0,0.26430878]
[1738765414594,0.0479,98597.0,98596.0,0.00966213]
[1738765414799,0.250745,98597.0,98596.0,0.00966213]
[1738765415665,0.0479,98597.0,98596.0,0.00966213]
[1738765416518,0.200034,98597.0,98596.0,0.00966213]
[1738765417022,0.0479,98597.0,98596.0,0.00966213]
[1738765417539,0.200034,98597.0,98596.0,0.00966213]
[1738765417974,0.0479,98597.0,98596.0,0.00966213]
[1738765421049,0.200034,98597.0,98596.0,0.00966213]
[1738765421251,0.152141,98593.0,98592.0,0.00966213]
[1738765421449,0.152166,98576.0,98575.0,0.00966213]
[1738765421892,0.228466,98576.0,98575.0,0.00966213]
[1738765422068,0.202891,98575.0,98569.0,0.00966213]
[1738765422223,0.00101751,98574.0,98567.0,0.00966213]
[1738765422429,0.231377,98569.0,98567.0,0.00966213]
[1738765422852,0.231377,98569.0,98568.0,0.00069116]
[1738765423709,0.2503037,98569.0,98568.0,0.00069116]
[1738765424768,0.231377,98569.0,98568.0,0.00069116]
[1738765429355,0.231377,98569.0,98568.0,0.01035329]
[1738765430190,0.231377,98569.0,98568.0,0.00069116]
[1738765431729,0.279777,98569.0,98568.0,0.00069116]
[1738765432658,0.679677,98569.0,98568.0,0.00069116]
[1738765433059,1.153677,98569.0,98568.0,0.00069116]
[1738765433261,1.17253835,98569.0,98568.0,0.00069116]
[1738765434476,1.2027026,98569.0,98568.0,0.00069116]
[1738765436289,1.0527026,98569.0,98568.0,0.00069116]
[1738765437135,1.02253835,98569.0,98568.0,0.00069116]
[1738765441030,1.003677,98569.0,98568.0,0.00069116]
[1738765441435,1.003677,98569.0,98568.0,0.01035329]
[1738765442043,0.679677,98569.0,98568.0,0.00069116]
[1738765443079,0.740527,98569.0,98568.0,0.00069116]
[1738765443625,0.89210099,98569.0,98568.0,0.00069116]
[1738765443832,1.04210099,98569.0,98568.0,0.00069116]
[1738765444159,2.54210099,98569.0,98568.0,0.00069116]
[1738765444743,1.04210099,98569.0,98568.0,0.00069116]
[1738765445003,1.07229064,98569.0,98568.0,0.00069116]
[1738765445729,0.96978699,98569.0,98568.0,0.00069116]
[1738765446136,0.93959734,98569.0,98568.0,0.00069116]
[1738765448025,1.11359734,98569.0,98568.0,0.00069116]
[1738765449500,1.14385234,98569.0,98568.0,0.00069116]
[1738765450461,1.11359734,98569.0,98568.0,0.00069116]
[1738765450664,1.21610099,98569.0,98568.0,0.00069116]
[1738765455554,1.23910099,98569.0,98568.0,0.00069116]
[1738765456001,1.34603886,98569.0,98568.0,1.6e-07]
[1738765457772,1.51531994,98569.0,98568.0,1.6e-07]
[1738765458042,1.51531994,98569.0,98562.0,0.00022428]
[1738765458043,0.60917387,98563.0,98562.0,4.4e-07]
[1738765458295,0.60917387,98563.0,98543.0,0.00022407]
[1738765458296,0.342266,98544.0,98543.0,0.00022407]
[1738765458521,0.76876965,98544.0,98543.0,0.00036416]
[1738765458765,1.21773999,98544.0,98543.0,0.00036416]
[1738765458992,1.49324364,98544.0,98543.0,0.00036416]
[1738765459252,2.89073999,98544.0,98543.0,1.6e-07]
[1738765459457,2.91112951,98544.0,98543.0,1.6e-07]
[1738765459906,2.93863321,98544.0,98543.0,1.6e-07]
[1738765460117,2.93863321,98544.0,98525.0,0.00022407]
[1738765460118,0.494592,98527.0,98525.0,0.00022407]
[1738765460328,1.0465993,98527.0,98525.0,0.00022407]
[1738765460552,1.34399565,98527.0,98525.0,0.00022407]
[1738765460766,1.4057496,98527.0,98525.0,0.00022407]
[1738765461317,1.06939595,98527.0,98525.0,0.00022407]
[1738765463119,0.92521234,98527.0,98525.0,0.00022407]
[1738765465702,0.60121234,98527.0,98525.0,0.00022407]
[1738765468221,0.60121234,98527.0,98526.0,0.00988641]
[1738765469733,0.57101521,98527.0,98526.0,0.00988641]
[1738765472295,0.552142,98527.0,98526.0,0.00988641]
[1738765473000,0.552142,98527.0,98526.0,0.00022428]
[1738765473215,0.552142,98527.0,98526.0,0.00988641]
[1738765477955,0.57105013,98527.0,98526.0,0.00988641]
[1738765482003,0.41880813,98527.0,98526.0,0.00988641]
[1738765482313,0.57105013,98527.0,98526.0,0.00988641]
[1738765485694,0.6013606,98527.0,98526.0,0.00988641]
[1738765488407,0.57105013,98527.0,98526.0,0.00988641]
[1738765489071,0.41880813,98527.0,98526.0,0.11239006]
[1738765489285,0.41880813,98527.0,98526.0,0.26463406]
[1738765489507,0.3999,98527.0,98526.0,0.26463406]
[1738765493541,0.3999,98527.0,98526.0,0.41463406]
[1738765493851,0.3999,98527.0,98526.0,0.49083406]
[1738765495311,0.3999,98527.0,98526.0,0.52241777]
[1738765497047,0.3999,98527.0,98526.0,0.49083406]
[1738765498069,0.3986,98527.0,98526.0,0.49083406]
[1738765498209,0.3986,98527.0,98526.0,0.52241381]
[1738765500255,0.3986,98527.0,98526.0,0.55541381]
[1738765500457,0.297105,98527.0,98526.0,0.61411381]
[1738765500676,0.0001068,98543.0,98542.0,0.33188113]
[1738765500891,0.0001068,98543.0,98542.0,2.60250008]
[1738765501126,0.0001068,98543.0,98542.0,1.57713765]
[1738765501333,0.0001068,98543.0,98542.0,1.5555579]
[1738765501735,0.0001068,98543.0,98542.0,2.57092033]
[1738765503520,0.0001068,98543.0,98542.0,2.58090621]
[1738765506251,0.0001068,98543.0,98542.0,2.60070078]
[1738765510083,0.0001068,98543.0,98542.0,1.58533835]
[1738765513114,0.02635334,98566.0,98565.0,0.16184513]
[1738765513317,0.02635334,98566.0,98565.0,0.26434878]
[1738765515277,0.02646014,98566.0,98565.0,0.26434878]
[1738765523739,0.0001068,98566.0,98542.0,0.040582]
[1738765523941,0.355107,98562.0,98561.0,0.00966213]
[1738765524253,0.15219,98561.0,98560.0,0.00966213]
[1738765524455,0.15219,98561.0,98540.0,0.040589]
[1738765524456,0.0495,98559.0,98549.0,0.00966213]
[1738765524659,0.15223,98535.0,98534.0,0.00966213]
[1738765524894,0.15323151,98545.0,98544.0,0.00966213]
[1738765525099,0.152214,98545.0,98544.0,0.00966213]
[1738765525305,0.17115935,98545.0,98544.0,0.00966213]
[1738765525504,0.24955935,98545.0,98544.0,0.00966213]
[1738765525913,0.24955935,98545.0,98544.0,0.11216578]
[1738765525914,0.09734535,98545.0,98544.0,0.11216578]
[1738765526110,0.0784,98545.0,98544.0,0.26438178]
[1738765526348,0.0784,98545.0,98544.0,0.11216578]
[1738765527469,0.0784,98545.0,98544.0,0.11239006]
[1738765528660,0.0495,98546.0,98545.0,0.00966213]
[1738765528864,0.0495,98546.0,98545.0,0.26437978]
[1738765529989,0.0827,98552.0,98551.0,0.152205]
[1738765530188,0.0483,98556.0,98551.0,0.10250365]
[1738765530402,0.0483,98556.0,98554.0,0.152199]
[1738765530626,0.0483,98556.0,98555.0,0.10250365]
[1738765530924,0.04707934,98556.0,98555.0,0.10250365]
[1738765532458,0.19927634,98556.0,98555.0,0.11216578]
[1738765532632,0.04707934,98556.0,98555.0,0.11216578]
[1738765535769,0.19927634,98556.0,98555.0,0.11216578]
[1738765536931,0.04707934,98556.0,98555.0,0.11216578]
[1738765540677,0.04707934,98556.0,98541.0,0.202959]
[1738765540879,0.20394951,98555.0,98545.0,0.10250365]
[1738765541285,0.152214,98545.0,98544.0,0.00988641]
[1738765541539,0.202934,98554.0,98553.0,0.00966213]
[1738765541743,0.434734,98554.0,98553.0,0.00966213]
[1738765542492,0.0796,98554.0,98553.0,0.26436778]
[1738765542738,0.04707934,98556.0,98555.0,0.16186113]
[1738765542996,0.04707934,98556.0,98555.0,0.26436478]
[1738765544159,0.04707934,98556.0,98555.0,0.11216578]
[1738765551029,0.04707934,98556.0,98555.0,0.26436478]
[1738765551335,0.04707934,98556.0,98555.0,0.11216578]
[1738765555381,0.04707934,98556.0,98555.0,0.11239006]
[1738765555802,0.04718614,98556.0,98555.0,0.11239006]
[1738765560665,0.04718614,98556.0,98555.0,0.26458906]
[1738765561063,0.04718614,98556.0,98555.0,0.11239006]
[1738765562661,0.19938314,98556.0,98555.0,0.00022428]
[1738765562874,0.20040065,98556.0,98555.0,0.00988641]
[1738765563690,0.04718614,98556.0,98555.0,0.00988641]
[1738765565308,0.04718614,98556.0,98555.0,0.26458906]
[1738765565680,0.0001068,98556.0,98555.0,0.26458906]
[1738765573346,0.0001068,98556.0,98555.0,0.41458906]
[1738765573554,0.0001068,98556.0,98555.0,0.54577279]
[1738765573756,0.0001068,98556.0,98555.0,0.55577279]
[1738765575958,0.0001068,98556.0,98555.0,0.54577279]
[1738765576314,0.0001068,98556.0,98555.0,0.55577279]
[1738765577076,0.0001068,98556.0,98555.0,0.46917279]
[1738765578119,0.046,98580.0,98557.0,0.202928]
[1738765578339,0.046,98580.0,98574.0,0.152169]
[1738765578541,0.198161,98580.0,98575.0,0.10126453]
[1738765578702,0.046,98580.0,98579.0,0.00966213]
[1738765579655,0.04646694,98580.0,98579.0,0.26432778]
[1738765587186,0.00046694,98580.0,98579.0,0.26432778]
[1738765592262,0.00046694,98580.0,98579.0,0.27437584]
[1738765592976,0.00046694,98580.0,98579.0,0.29327334]
[1738765593959,0.00046694,98580.0,98579.0,0.31627334]
[1738765594187,0.00057374,98580.0,98579.0,0.31627334]
[1738765594682,0.00057374,98580.0,98579.0,0.28322528]
[1738765596015,0.00057374,98580.0,98579.0,0.30622528]
[1738765596971,0.00057374,98580.0,98579.0,0.45622528]
[1738765598136,0.05817374,98596.0,98595.0,0.16179913]
[1738765598339,0.05831379,98596.0,98595.0,0.26430278]
[1738765599345,0.00014005,98596.0,98595.0,0.26430278]
[1738765599549,0.00014005,98596.0,98595.0,0.28320028]
[1738765602307,0.00014005,98596.0,98595.0,0.29324334]
[1738765606999,0.00014005,98596.0,98595.0,0.27434584]
[1738765607207,0.00024685,98596.0,98595.0,0.27434584]
[1738765608315,0.00024685,98596.0,98595.0,0.26430278]
[1738765608547,0.00024685,98596.0,98595.0,0.11216578]
[1738765608548,0.27508185,98596.0,98595.0,0.11216578]
[1738765608766,0.27508185,98596.0,98595.0,0.00966213]
[1738765609467,0.27508185,98596.0,98573.0,0.00997314]
[1738765609468,0.152154,98584.0,98579.0,0.152161]
[1738765609676,0.275837,98595.0,98594.0,0.00966213]
[1738765616678,0.152139,98594.0,98593.0,0.00966213]
[1738765617099,0.27855651,98594.0,98593.0,0.00966213]
[1738765617333,0.277539,98594.0,98593.0,0.00966213]
[1738765620755,0.277539,98594.0,98593.0,0.00988641]
[1738765623222,0.338389,98594.0,98593.0,0.00988641]
[1738765631659,0.277539,98594.0,98593.0,0.00988641]
[1738765638008,0.277539,98594.0,98593.0,0.00022428]
[1738765638242,0.601539,98594.0,98593.0,0.00022428]
[1738765647224,0.70404265,98594.0,98593.0,0.00022428]
[1738765647422,0.76489265,98594.0,98593.0,0.00022428]
[1738765647622,0.91489265,98594.0,98593.0,0.00022428]
[1738765647834,0.98220015,98594.0,98593.0,2.8e-07]
[1738765648036,1.00520015,98594.0,98593.0,2.8e-07]
[1738765648249,0.276566,98576.0,98575.0,0.00022428]
[1738765650619,0.28673416,98576.0,98575.0,0.00022428]
[1738765653000,0.61073416,98576.0,98575.0,0.00022428]
[1738765658148,0.67158416,98576.0,98575.0,0.00022428]
[1738765659201,0.67158416,98576.0,98575.0,0.00988641]
[1738765659202,0.53153416,98576.0,98575.0,0.00988641]
[1738765660481,0.48633416,98576.0,98575.0,0.00988641]
[1738765660711,0.476166,98576.0,98575.0,0.00988641]
[1738765661352,0.324,98576.0,98575.0,0.26455806]
[1738765661548,0.152151,98587.0,98575.0,0.26455806]
[1738765661549,0.152151,98587.0,98586.0,0.00966213]
[1738765661785,0.152148,98589.0,98586.0,0.11216578]
[1738765661996,0.152148,98589.0,98587.0,0.10250365]
[1738765662431,0.152146,98590.0,98587.0,0.10250365]
[1738765662647,0.152148,98589.0,98587.0,0.10250365]
[1738765663081,0.202852,98594.0,98587.0,0.10250365]
[1738765663502,0.152147,98589.0,98587.0,0.10250365]
[1738765663948,0.1522468,98593.0,98592.0,0.00966213]
[1738765664352,0.152148,98588.0,98587.0,0.10250365]
[1738765664524,0.152148,98588.0,98587.0,0.11216578]
[1738765664979,0.152145,98591.0,98587.0,0.11216578]
[1738765665164,0.152145,98590.0,98587.0,0.11216578]
[1738765665797,0.152147,98589.0,98587.0,0.11216578]
[1738765666041,0.202858,98591.0,98587.0,0.11216578]
[1738765666244,0.355003,98591.0,98587.0,0.11216578]
[1738765666450,0.152145,98591.0,98587.0,0.11216578]
[1738765666674,0.0001068,98593.0,98587.0,0.11216578]
[1738765666876,0.152145,98590.0,98587.0,0.11216578]
[1738765667083,0.152145,98591.0,98587.0,0.11216578]
[1738765667287,0.2029618,98593.0,98587.0,0.11216578]
[1738765667540,0.152147,98589.0,98587.0,0.11216578]
[1738765667783,0.152144,98591.0,98587.0,0.11216578]
[1738765668238,0.152145,98590.0,98587.0,0.11216578]
[1738765668454,0.152147,98589.0,98587.0,0.11216578]
[1738765670145,0.152148,98588.0,98587.0,0.11216578]
[1738765670380,0.152148,98588.0,98587.0,0.00966213]
[1738765670597,0.152143,98591.0,98590.0,0.00966213]
[1738765671024,0.227143,98591.0,98590.0,0.00966213]
[1738765672154,0.075,98591.0,98583.0,0.00966213]
[1738765672359,0.152166,98576.0,98575.0,0.00988641]
[1738765672612,0.152166,98576.0,98575.0,0.11239006]
[1738765673218,0.152166,98576.0,98575.0,0.00988641]
[1738765673989,0.152164,98578.0,98575.0,0.00988641]
[1738765674627,0.202882,98580.0,98575.0,0.00988641]
[1738765674628,0.152165,98577.0,98575.0,0.00988641]
[1738765675032,0.152166,98576.0,98575.0,0.00988641]
[1738765675929,1.58143654,98634.0,98575.0,0.00988641]
[1738765675930,0.202872,98584.0,98583.0,0.00966213]
[1738765680312,0.00991525,98586.0,98583.0,0.00966213]
[1738765680518,0.00024685,98596.0,98592.0,0.00966213]
[1738765680648,0.00024685,98596.0,98592.0,0.26430778]
[1738765681054,0.00024685,98596.0,98592.0,0.51350778]
[1738765681255,0.00024685,98596.0,98592.0,0.53360778]
[1738765683083,0.30556735,98627.0,98626.0,0.00966213]
[1738765683386,0.00013997,98627.0,98626.0,0.00966213]
[1738765684023,0.00013997,98627.0,98626.0,0.11216578]